bitfinex/quotes_BTCUSD_20241107
["timestamp","ask_amount","ask_price","bid_price","bid_amount"]
[1731003094253,0.19777829,75899.0,75872.0,0.1]
[1731003094460,0.19777829,75891.0,75874.0,0.1]
[1731003094675,0.13553543,75890.0,75882.0,0.19777829]
[1731003094926,0.13224102,75890.0,75882.0,0.19777829]
[1731003095382,0.13224102,75890.0,75874.0,0.1]
[1731003095779,0.13224102,75890.0,75882.0,0.19777829]
[1731003096107,0.13224102,75890.0,75874.0,0.1]
[1731003096944,0.01651834,75889.0,75874.0,0.1]
[1731003097123,0.13224102,75888.0,75874.0,0.1]
[1731003097371,0.00329443,75887.0,75874.0,0.1]
[1731003097595,0.13224102,75886.0,75873.0,0.19777829]
[1731003097814,0.0784,75884.0,75871.0,0.00149]
[1731003098019,0.005,75880.0,75871.0,0.00149]
[1731003098228,0.25803423,75877.0,75876.0,0.19777829]
[1731003098435,0.13224102,75877.0,75871.0,0.00149]
[1731003098661,0.1355362,75876.0,75871.0,0.00149]
[1731003099079,0.1355362,75876.0,75866.0,0.00048103]
[1731003099531,0.13224102,75876.0,75866.0,0.00048103]
[1731003099720,0.13224102,75876.0,75871.0,0.19777829]
[1731003099909,0.00329503,75886.0,75866.0,0.00048103]
[1731003100153,0.13224102,75885.0,75866.0,0.00048103]
[1731003100606,0.13224102,75885.0,75871.0,0.000834]
[1731003101254,0.13224102,75885.0,75874.0,0.19777829]
[1731003101255,0.13124102,75885.0,75874.0,0.19777829]
[1731003101468,0.13124102,75885.0,75871.0,0.000834]
[1731003101883,0.13124102,75885.0,75872.0,0.19777829]
[1731003103082,0.19777829,75884.0,75871.0,0.000834]
[1731003103281,0.13553556,75883.0,75871.0,0.000834]
[1731003103954,0.13553556,75883.0,75873.0,0.19777829]
[1731003104153,0.13553556,75883.0,75871.0,0.000834]
[1731003104718,0.13453556,75883.0,75871.0,0.000834]
[1731003106007,0.13453556,75883.0,75873.0,0.19777829]
[1731003106008,0.13124102,75883.0,75873.0,0.19777829]
[1731003106123,0.00329476,75891.0,75873.0,0.19777829]
[1731003106124,0.00329441,75897.0,75874.0,0.123]
[1731003106339,0.19777829,75890.0,75876.0,0.023]
[1731003106560,0.19777829,75889.0,75876.0,0.023]
[1731003106764,0.00829421,75895.0,75871.0,0.023834]
[1731003106972,0.13224102,75894.0,75876.0,0.023]
[1731003107373,0.13224102,75894.0,75876.0,0.123]
[1731003107632,0.19944629,75907.0,75883.0,0.19777829]
[1731003107848,0.19944629,75907.0,75888.0,0.023]
[1731003107849,0.19777829,75899.0,75888.0,0.023]
[1731003108008,0.19944629,75907.0,75888.0,0.023]
[1731003109823,0.19844629,75907.0,75888.0,0.023]
[1731003110193,0.001668,75907.0,75900.0,0.19777829]
[1731003110406,0.001668,75907.0,75901.0,0.023]
[1731003111142,0.001668,75907.0,75897.0,0.023]
[1731003111270,0.001668,75907.0,75900.0,0.19777829]
[1731003111472,0.001668,75907.0,75902.0,0.1]
[1731003111698,0.001668,75907.0,75903.0,0.023]
[1731003111943,0.000668,75907.0,75903.0,0.023]
[1731003112190,0.000668,75907.0,75903.0,0.028]
[1731003112621,0.000668,75907.0,75903.0,0.16024102]
[1731003112833,0.000668,75907.0,75905.0,0.023]
[1731003113039,0.19777829,75906.0,75890.0,0.079]
[1731003113241,0.19777829,75905.0,75892.0,0.1]
[1731003113442,0.19777829,75903.0,75892.0,0.1]
[1731003113700,0.19777829,75912.0,75892.0,0.1]
[1731003113701,0.25803423,75908.0,75907.0,0.06]
[1731003113855,0.39027525,75908.0,75907.0,0.06]
[1731003117295,0.40527525,75908.0,75907.0,0.06]
[1731003118080,0.41739528,75908.0,75907.0,0.06]
[1731003118467,0.41239528,75908.0,75907.0,0.06]
[1731003118674,0.40239528,75908.0,75907.0,0.06]
[1731003118882,0.39027525,75908.0,75907.0,0.06]
[1731003121291,0.03888758,75922.0,75907.0,0.06]
[1731003121481,0.14436404,75921.0,75907.0,0.06]
[1731003121709,0.19777829,75920.0,75907.0,0.06]
[1731003121914,0.13224102,75921.0,75907.0,0.06]
[1731003122158,0.00329293,75928.0,75909.0,0.1]
[1731003122386,0.13174102,75927.0,75909.0,0.1]
[1731003122634,0.01371701,75929.0,75916.0,0.19777829]
[1731003122839,0.01371701,75929.0,75917.0,0.1782]
[1731003122840,0.19777829,75928.0,75917.0,0.1782]
[1731003123268,0.00329246,75936.0,75917.0,0.1782]
[1731003123502,0.19777829,75925.0,75917.0,0.1]
[1731003123751,0.00329275,75934.0,75910.0,0.1]
[1731003124022,0.13224102,75933.0,75918.0,0.19777829]
[1731003124257,0.00329275,75932.0,75910.0,0.1]
[1731003124533,0.13224102,75931.0,75917.0,0.19777829]
[1731003124766,0.19777829,75934.0,75917.0,0.19777829]
[1731003125447,0.001668,75927.0,75917.0,0.19777829]
[1731003126356,0.001668,75927.0,75914.0,0.023]
[1731003126583,0.001668,75927.0,75913.0,0.005]
[1731003126584,0.001668,75927.0,75911.0,0.023]
[1731003127018,0.001668,75927.0,75911.0,0.05082432]
[1731003127428,0.33001931,75926.0,75910.0,0.1]
[1731003127635,0.33001931,75926.0,75885.0,0.25803423]
[1731003127636,0.25803423,75920.0,75907.0,0.06]
[1731003127879,0.13553448,75919.0,75907.0,0.06]
[1731003128104,0.13553448,75919.0,75909.0,0.19777829]
[1731003128544,0.13553448,75919.0,75907.0,0.06]
[1731003128764,0.13553448,75919.0,75909.0,0.19777829]
[1731003129658,0.13553448,75919.0,75907.0,0.06]
[1731003129875,0.13553448,75919.0,75909.0,0.19777829]
[1731003130078,0.13553448,75919.0,75907.0,0.06]
[1731003130283,0.07553448,75919.0,75891.0,0.29777829]
[1731003130722,0.00329339,75918.0,75891.0,0.29777829]
[1731003130924,0.13224102,75917.0,75910.0,0.19777829]
[1731003131146,0.13224102,75917.0,75900.0,0.00263471]
[1731003131147,0.13224102,75917.0,75900.0,0.10263471]
[1731003131365,0.20107152,75916.0,75901.0,0.19777829]
[1731003131571,0.13224102,75915.0,75901.0,0.19777829]
[1731003131785,0.00329339,75914.0,75909.0,0.19777829]
[1731003131983,0.13224102,75913.0,75901.0,0.19777829]
[1731003132188,0.13224102,75913.0,75901.0,0.200413]
[1731003132841,0.00329339,75924.0,75901.0,0.200413]
[1731003133045,0.00329339,75924.0,75902.0,0.1]
[1731003133046,0.13224102,75923.0,75902.0,0.1]
[1731003133231,0.0032932,75922.0,75902.0,0.1]
[1731003133448,0.13224102,75921.0,75902.0,0.1]
[1731003133603,0.13224102,75921.0,75909.0,0.19777829]
[1731003134398,0.00329321,75920.0,75909.0,0.19777829]
[1731003134601,0.13224102,75919.0,75909.0,0.19777829]
[1731003134802,0.00329321,75918.0,75909.0,0.19777829]
[1731003135121,0.13224102,75917.0,75909.0,0.19777829]
[1731003135545,0.13224102,75917.0,75902.0,0.1]
[1731003135708,0.00329321,75916.0,75902.0,0.1]
[1731003136517,0.13224102,75917.0,75902.0,0.1]
[1731003136720,0.13224102,75917.0,75903.0,0.00263457]
[1731003137684,0.001668,75927.0,75912.0,0.19777829]
[1731003137897,0.19777829,75925.0,75906.0,0.123]
[1731003138122,0.2010711,75925.0,75910.0,0.1]
[1731003138342,0.00329281,75925.0,75910.0,0.1]
[1731003138545,0.13224102,75926.0,75910.0,0.1]
[1731003138728,0.2010711,75925.0,75910.0,0.1]
[1731003139114,0.00329281,75925.0,75910.0,0.1]
[1731003140146,0.13224102,75926.0,75910.0,0.1]
[1731003140621,0.001668,75927.0,75914.0,0.005]
[1731003140822,0.001668,75927.0,75915.0,0.023]
[1731003141255,0.001668,75927.0,75915.0,0.028]
[1731003141467,0.001668,75927.0,75922.0,0.023]
[1731003141696,0.19777829,75926.0,75922.0,0.023]
[1731003141894,0.001668,75927.0,75922.0,0.023]
[1731003142095,0.001668,75927.0,75918.0,0.1]
[1731003142488,0.13224102,75926.0,75915.0,0.02737469]
[1731003142738,0.00329289,75925.0,75916.0,0.19777829]
[1731003142852,0.13553391,75925.0,75916.0,0.19777829]
[1731003143505,0.001668,75927.0,75917.0,0.00263429]
[1731003143708,0.001668,75927.0,75917.0,0.10263429]
[1731003144360,0.001668,75927.0,75918.0,0.028]
[1731003144567,0.001668,75927.0,75922.0,0.023]
[1731003144762,0.19777829,75926.0,75919.0,0.1]
[1731003144963,0.001668,75927.0,75920.0,0.023]
[1731003145862,0.001668,75927.0,75917.0,0.005]
[1731003145863,0.001668,75927.0,75918.0,0.023]
[1731003146627,0.001668,75927.0,75919.0,0.1]
[1731003146943,0.001668,75927.0,75920.0,0.023]
[1731003147145,0.001668,75927.0,75918.0,0.023]
[1731003147903,0.001668,75927.0,75920.0,0.023]
[1731003148326,0.001668,75927.0,75919.0,0.1]
[1731003148724,0.001668,75927.0,75916.0,0.02751627]
[1731003148924,0.001668,75927.0,75918.0,0.1]
[1731003149559,0.001668,75927.0,75919.0,0.00263407]
[1731003149966,0.001668,75927.0,75916.0,0.02708544]
[1731003149967,0.19777829,75926.0,75916.0,0.02708544]
[1731003150202,0.001668,75927.0,75912.0,0.1]
[1731003151758,0.33001931,75926.0,75908.0,0.02798287]
[1731003151962,0.00329288,75925.0,75911.0,0.19777829]
[1731003152180,0.1355339,75925.0,75912.0,0.1]
[1731003152377,0.001668,75927.0,75913.0,0.0026343]
[1731003152577,0.001668,75927.0,75914.0,0.00263404]
[1731003152962,0.001668,75927.0,75912.0,0.1]
[1731003153174,0.001668,75927.0,75913.0,0.023]
[1731003153716,0.001668,75927.0,75914.0,0.00263405]
[1731003154003,0.001668,75927.0,75913.0,0.023]
[1731003155253,0.001668,75927.0,75914.0,0.00263405]
[1731003155448,0.001668,75927.0,75913.0,0.023]
[1731003159784,0.001668,75927.0,75914.0,0.00263405]
[1731003160006,0.001668,75927.0,75920.0,0.1]
[1731003160208,0.001668,75927.0,75921.0,0.023]
[1731003160818,0.001668,75927.0,75922.0,0.00263374]
[1731003161261,0.001668,75927.0,75921.0,0.023]
[1731003161682,0.001668,75927.0,75920.0,0.023]
[1731003162164,0.001668,75927.0,75922.0,0.023]
[1731003163078,0.001668,75927.0,75915.0,0.01]
[1731003163329,0.001668,75927.0,75912.0,0.1]
[1731003163541,0.13390902,75927.0,75908.0,0.000834]
[1731003163736,0.25803423,75923.0,75912.0,0.0269607]
[1731003163957,0.00329295,75922.0,75910.0,0.19777829]
[1731003164934,0.00329295,75925.0,75911.0,0.00263436]
[1731003165118,0.001668,75927.0,75911.0,0.10263436]
[1731003165520,0.001668,75927.0,75912.0,0.023]
[1731003165784,0.001668,75927.0,75914.0,0.023]
[1731003165998,0.19777829,75926.0,75912.0,0.023]
[1731003166200,0.001668,75927.0,75920.0,0.19777829]
[1731003166354,0.001668,75927.0,75922.0,0.023]
[1731003167033,0.001668,75927.0,75923.0,0.00263374]
[1731003167254,0.001668,75927.0,75926.0,0.028]
[1731003167476,0.001668,75927.0,75926.0,0.26024102]
[1731003171020,0.001668,75927.0,75926.0,0.25524102]
[1731003171221,0.001668,75927.0,75926.0,0.023]
[1731003171377,0.001668,75927.0,75925.0,0.023]
[1731003171795,0.19777829,75947.0,75939.0,0.005]
[1731003172016,0.19777829,75947.0,75941.0,0.023]
[1731003172426,0.19777829,75947.0,75940.0,0.023]
[1731003172661,0.001668,75953.0,75940.0,0.023]
[1731003172801,0.19777829,75951.0,75940.0,0.023]
[1731003173012,0.001668,75953.0,75940.0,0.023]
[1731003173852,0.001668,75953.0,75944.0,0.1]
[1731003174921,0.001668,75953.0,75935.0,0.023]
[1731003175132,0.001668,75953.0,75942.0,0.19777829]
[1731003175340,0.001668,75953.0,75935.0,0.123]
[1731003175552,0.19777829,75951.0,75935.0,0.123]
[1731003175783,0.25803423,75949.0,75935.0,0.19777829]
[1731003175986,0.13553291,75948.0,75936.0,0.19777829]
[1731003176810,0.00329189,75948.0,75936.0,0.19777829]
[1731003178902,0.00329189,75952.0,75931.0,0.02753903]
[1731003179088,0.19777829,75950.0,75931.0,0.02753903]
[1731003179239,0.13553291,75949.0,75929.0,0.1]
[1731003180530,0.19777829,75948.0,75929.0,0.1]
[1731003180707,0.0032919,75947.0,75929.0,0.1]
[1731003181551,0.13224102,75946.0,75929.0,0.1]
[1731003181733,0.00329205,75945.0,75929.0,0.1]
[1731003182085,0.00329205,75945.0,75912.0,0.002]
[1731003182086,0.19777829,75939.0,75924.0,0.02734242]
[1731003182296,0.25803423,75932.0,75919.0,0.000834]
[1731003182660,0.13553374,75931.0,75920.0,0.19777829]
[1731003183528,0.00329272,75931.0,75920.0,0.19777829]
[1731003183757,0.23670255,75939.0,75921.0,0.1]
[1731003183946,0.19777829,75939.0,75921.0,0.1]
[1731003185062,0.19777829,75931.0,75920.0,0.02785259]
[1731003185259,0.13553369,75930.0,75922.0,0.19777829]
[1731003185968,0.13553369,75930.0,75919.0,0.000834]
[1731003187357,0.00329267,75930.0,75920.0,0.19777829]
[1731003187544,0.00329271,75936.0,75920.0,0.19777829]
[1731003187757,0.19777829,75931.0,75919.0,0.000834]
[1731003187987,0.33331196,75930.0,75919.0,0.000834]
[1731003188183,0.25803423,75925.0,75919.0,0.000834]
[1731003188316,0.13553418,75924.0,75919.0,0.000834]
[1731003188528,0.005,75920.0,75919.0,0.000834]
[1731003188753,0.13724102,75920.0,75919.0,0.000834]
[1731003191553,0.0801,75929.0,75919.0,0.000834]
[1731003191763,0.13224102,75928.0,75919.0,0.000834]
[1731003192122,0.00329291,75935.0,75920.0,0.19777829]
[1731003192397,0.048,75937.0,75921.0,0.00263409]
[1731003192398,0.13224102,75934.0,75921.0,0.00263409]
[1731003192579,0.03889752,75946.0,75922.0,0.23724102]
[1731003192747,0.19777829,75937.0,75922.0,0.23724102]
[1731003192942,0.13224102,75945.0,75923.0,0.00263367]
[1731003193271,0.13224102,75945.0,75922.0,0.23724102]
[1731003193272,0.19777829,75940.0,75922.0,0.23724102]
[1731003193902,0.00329209,75939.0,75923.0,0.19777829]
[1731003194071,0.00329209,75939.0,75924.0,0.1]
[1731003194441,0.00329209,75939.0,75919.0,0.005834]
[1731003194442,0.13224102,75938.0,75919.0,0.000834]
[1731003194650,0.25803423,75935.0,75920.0,0.19777829]
[1731003194861,0.13553363,75934.0,75920.0,0.19777829]
[1731003195080,0.13553363,75934.0,75919.0,0.000834]
[1731003195314,0.25803423,75928.0,75919.0,0.000834]
[1731003195534,0.13553395,75927.0,75920.0,0.19777829]
[1731003195982,0.13553395,75927.0,75919.0,0.000834]
[1731003199480,0.13553395,75927.0,75920.0,0.19777829]
[1731003199687,0.00329293,75934.0,75919.0,0.000834]
[1731003199915,0.19777829,75932.0,75919.0,0.000834]
[1731003200138,0.00329267,75931.0,75919.0,0.000834]
[1731003200356,0.00329267,75931.0,75920.0,0.19777829]
[1731003201209,0.00329267,75931.0,75919.0,0.000834]
[1731003202982,0.19777829,75939.0,75921.0,0.1]
[1731003203180,0.33001931,75939.0,75922.0,0.0026339]
[1731003203380,0.001668,75944.0,75923.0,0.105]
[1731003203597,0.19777829,75938.0,75923.0,0.10763379]
[1731003204018,0.00496012,75944.0,75923.0,0.105]
[1731003204204,0.001668,75944.0,75929.0,0.105]
[1731003204401,0.001668,75944.0,75931.0,0.107]
[1731003204643,0.001668,75944.0,75932.0,0.00263339]
[1731003204851,0.001668,75944.0,75935.0,0.005]
[1731003205088,0.001668,75944.0,75936.0,0.1026333]
[1731003205326,0.001668,75944.0,75938.0,0.005]
[1731003205539,0.001668,75944.0,75943.0,0.005]
[1731003205755,0.001668,75944.0,75943.0,0.13724102]
[1731003206154,0.001668,75944.0,75943.0,0.23724102]
[1731003206390,0.001668,75944.0,75943.0,0.24187399]
[1731003206605,0.001668,75944.0,75943.0,0.27487399]
[1731003206786,0.001668,75944.0,75943.0,0.27224102]
[1731003207318,0.001668,75944.0,75943.0,0.31954102]
[1731003208792,0.001668,75944.0,75943.0,0.29654102]
[1731003209430,0.001668,75944.0,75943.0,0.55457525]
[1731003211407,0.001668,75944.0,75943.0,0.45457525]
[1731003211640,0.001668,75944.0,75943.0,0.005]
[1731003212062,0.001668,75944.0,75943.0,0.015]
[1731003212649,0.001668,75944.0,75943.0,0.005]
[1731003212852,0.001668,75944.0,75943.0,0.015]
[1731003213299,0.001668,75944.0,75943.0,0.005]
[1731003213931,0.001668,75944.0,75938.0,0.005]
[1731003214144,0.001668,75944.0,75936.0,0.02722119]
[1731003214145,0.001668,75944.0,75939.0,0.005]
[1731003214564,0.001668,75944.0,75936.0,0.15946221]
[1731003214767,0.19777829,75942.0,75936.0,0.02722119]
[1731003215074,0.001668,75944.0,75922.0,0.005]
[1731003215263,0.001668,75944.0,75937.0,0.39505]
[1731003216074,0.001668,75944.0,75938.0,0.00263356]
[1731003216281,0.001668,75944.0,75939.0,0.39505]
[1731003216868,0.001668,75944.0,75940.0,0.00263313]
[1731003217050,0.001668,75944.0,75940.0,0.005]
[1731003217260,0.001668,75944.0,75941.0,0.39504]
[1731003217466,0.001668,75944.0,75942.0,0.1]
[1731003217874,0.001668,75944.0,75943.0,0.49503]
[1731003218077,0.001668,75944.0,75943.0,0.50003]
[1731003218288,0.001668,75944.0,75943.0,0.49503]
[1731003219746,0.001668,75944.0,75943.0,0.50003]
[1731003220154,0.001668,75944.0,75943.0,0.49503]
[1731003226089,0.001668,75944.0,75943.0,0.39503]
[1731003226753,0.00495977,75948.0,75943.0,0.39503]
[1731003226754,0.001668,75948.0,75944.0,0.005]
[1731003227184,0.001668,75948.0,75943.0,0.48573]
[1731003227185,0.001668,75948.0,75943.0,0.40003]
[1731003227336,0.001668,75948.0,75944.0,0.00263309]
[1731003227539,0.001668,75948.0,75944.0,0.10263309]
[1731003227866,0.001668,75948.0,75944.0,0.10763309]
[1731003228078,0.001668,75948.0,75946.0,0.1]
[1731003228242,0.001668,75948.0,75947.0,0.13724102]
[1731003228399,0.001668,75948.0,75947.0,0.63225102]
[1731003230717,0.001668,75948.0,75947.0,0.49501]
[1731003233094,0.001668,75948.0,75947.0,0.63225102]
[1731003233528,0.001668,75948.0,75947.0,0.62725102]
[1731003234167,0.001668,75948.0,75947.0,0.63225102]
[1731003234597,0.001668,75948.0,75947.0,0.64225102]
[1731003236122,0.001668,75948.0,75947.0,0.64425102]
[1731003236507,0.001668,75953.0,75952.0,0.017]
[1731003236693,0.001668,75953.0,75952.0,0.29857344]
[1731003236866,0.001668,75953.0,75952.0,0.79592102]
[1731003237299,0.001668,75953.0,75952.0,0.76963102]
[1731003237639,0.001668,75953.0,75952.0,0.79724417]
[1731003238278,0.001668,75953.0,75952.0,0.82024417]
[1731003238938,0.001668,75957.0,75956.0,0.017]
[1731003239108,0.03883908,75999.0,75956.0,0.017]
[1731003239109,0.19777829,76001.0,75981.0,0.107]
[1731003239342,0.19777829,76001.0,75982.0,0.00463178]
[1731003239515,0.19777829,76001.0,75982.0,0.77049601]
[1731003239746,0.19777829,76001.0,75982.0,0.76786423]
[1731003239929,0.000746,76002.0,75982.0,0.76786423]
[1731003240105,0.000746,76002.0,75982.0,0.51183]
[1731003240321,0.000746,76002.0,75982.0,0.76986423]
[1731003241282,0.000746,76002.0,75982.0,0.56248368]
[1731003241486,0.000746,76002.0,75982.0,0.82051791]
[1731003241728,0.000746,76002.0,75983.0,0.14]
[1731003242189,0.000746,76002.0,75983.0,0.53483]
[1731003242950,0.000746,76002.0,75992.0,0.017]
[1731003243202,0.000746,76002.0,75992.0,0.29803423]
[1731003243423,0.000746,76002.0,75992.0,0.79281423]
[1731003243859,0.000746,76002.0,75992.0,0.53478]
[1731003244535,0.000746,76002.0,75992.0,0.66702102]
[1731003246397,0.000746,76002.0,75992.0,0.63202102]
[1731003246611,0.000746,76002.0,75992.0,0.39478]
[1731003246813,0.000746,76002.0,75992.0,0.42255191]
[1731003247635,0.000746,76002.0,75992.0,0.42455191]
[1731003247845,0.000746,76002.0,75992.0,0.52255191]
[1731003249772,0.0814,75998.0,75992.0,0.52255191]
[1731003249990,0.0814,75998.0,75992.0,0.39478]
[1731003250399,0.00328955,75997.0,75992.0,0.39478]
[1731003250613,0.0814,75998.0,75992.0,0.39478]
[1731003250845,0.000746,76002.0,75992.0,0.39478]
[1731003251049,0.000746,76002.0,75992.0,0.53402102]
[1731003251270,0.000746,76002.0,75992.0,0.53202102]
[1731003251459,0.000746,76002.0,75992.0,0.63202102]
[1731003252236,0.000746,76002.0,75992.0,0.62702102]
[1731003252440,0.000746,76002.0,75992.0,0.49478]
[1731003254182,0.0484,75995.0,75992.0,0.39478]
[1731003255694,0.00328974,75994.0,75992.0,0.39478]
[1731003255907,0.13298702,75993.0,75992.0,0.39478]
[1731003256114,0.20938702,75993.0,75992.0,0.39478]
[1731003258274,0.077146,75993.0,75992.0,0.39478]
[1731003260203,0.000746,75993.0,75992.0,0.49478]
[1731003261344,0.000746,75993.0,75992.0,0.63202102]
[1731003262470,0.000746,75993.0,75992.0,0.63402102]
[1731003262684,0.000746,75993.0,75992.0,0.63202102]
[1731003263091,0.000746,75993.0,75992.0,0.65983448]
[1731003263513,0.000746,75993.0,75992.0,0.66183448]
[1731003264278,0.000746,75993.0,75992.0,0.65983448]
[1731003264494,0.000746,75993.0,75992.0,0.66983448]
[1731003265257,0.000746,75993.0,75992.0,0.67183448]
[1731003265920,0.000746,75993.0,75992.0,0.69483448]
[1731003266141,0.000746,75993.0,75992.0,0.77453448]
[1731003267264,0.000746,75993.0,75992.0,0.82363448]
[1731003268575,0.000746,76002.0,75999.0,0.017]
[1731003268810,0.000746,76002.0,75999.0,0.53027525]
[1731003269015,0.000746,76002.0,75999.0,0.92501525]
[1731003269430,0.000746,76020.0,75999.0,0.92501525]
[1731003269431,0.000746,76020.0,76019.0,0.007]
[1731003269667,0.000746,76020.0,76019.0,0.23724102]
[1731003269892,0.000746,76020.0,76019.0,0.24924102]
[1731003270959,0.000746,76020.0,76019.0,0.1]
[1731003271177,0.000746,76020.0,76017.0,0.005]
[1731003271600,0.000746,76020.0,76018.0,0.00263038]
[1731003273578,0.000746,76020.0,76019.0,0.23724102]
[1731003274670,0.000746,76020.0,76019.0,0.23987121]
[1731003275405,0.000746,76020.0,76019.0,0.24724102]
[1731003275640,0.000746,76020.0,76019.0,0.24924102]
[1731003275863,0.000746,76020.0,76019.0,0.64388102]
[1731003277164,0.000746,76020.0,76019.0,0.64188102]
[1731003277363,0.000746,76020.0,76019.0,0.64388102]
[1731003277585,0.000746,76020.0,76019.0,0.49464]
[1731003277959,0.000746,76020.0,76019.0,0.39464]
[1731003279640,0.000746,76020.0,76019.0,0.49464]
[1731003285766,0.000746,76020.0,76019.0,0.39464]
[1731003286344,0.000746,76020.0,76010.0,0.000833]
[1731003286543,0.000746,76020.0,76014.0,0.19777829]
[1731003288066,0.000746,76020.0,76010.0,0.000833]
[1731003288269,0.000746,76020.0,76012.0,0.1]
[1731003291742,0.000746,76020.0,76012.0,0.10263101]
[1731003291912,0.000746,76020.0,76012.0,0.1]
[1731003292535,0.000746,76020.0,76013.0,0.00263073]
[1731003292733,0.000746,76020.0,76018.0,0.002]
[1731003293410,0.000746,76020.0,76019.0,0.19777829]
[1731003293619,0.000746,76020.0,76019.0,0.23987156]
[1731003293798,0.000746,76020.0,76019.0,0.23724102]
[1731003294000,0.000746,76020.0,76019.0,0.23924102]
[1731003294703,0.000746,76020.0,76019.0,0.26420832]
[1731003295333,0.000746,76020.0,76019.0,0.26620832]
[1731003297311,0.000746,76020.0,76019.0,0.26420832]
[1731003299042,0.000746,76020.0,76019.0,0.0269673]
[1731003299468,0.000746,76020.0,76017.0,0.1]
[1731003300103,0.000746,76020.0,76010.0,0.02900661]
[1731003300362,0.000746,76020.0,76013.0,0.1]
[1731003300794,0.00403451,76020.0,76013.0,0.1]
[1731003301020,0.00403451,76020.0,76010.0,0.02900661]
[1731003301255,0.000746,76020.0,76012.0,0.19777829]
[1731003301477,0.000746,76020.0,76013.0,0.00263095]
[1731003301696,0.000746,76020.0,76019.0,0.002]
[1731003302129,0.000746,76020.0,76014.0,0.005]
[1731003302590,0.000746,76020.0,76014.0,0.105]
[1731003302840,0.000746,76020.0,76014.0,0.1]
[1731003303051,0.000746,76020.0,76007.0,0.002]
[1731003303291,0.000746,76020.0,76012.0,0.1]
[1731003303507,0.000746,76020.0,76013.0,0.19777829]
[1731003303724,0.000746,76020.0,76014.0,0.1]
[1731003304662,0.000746,76020.0,76010.0,0.000833]
[1731003304663,0.25742194,76015.0,76010.0,0.000833]
[1731003304879,0.00328905,76014.0,76011.0,0.19777829]
[1731003305405,0.21084102,76013.0,76010.0,0.000833]
[1731003305615,0.00328922,76012.0,76010.0,0.000833]
[1731003305821,0.13553024,76012.0,76010.0,0.000833]
[1731003306027,0.13224102,76011.0,76010.0,0.000833]
[1731003306917,0.0786,76013.0,76010.0,0.000833]
[1731003307123,0.13224102,76012.0,76010.0,0.000833]
[1731003307537,0.00328922,76011.0,76010.0,0.000833]
[1731003308220,0.1069064,76012.0,76010.0,0.000833]
[1731003308418,0.00098512,76011.0,76010.0,0.000833]
[1731003308628,0.13322614,76011.0,76010.0,0.000833]
[1731003311677,0.00098512,76011.0,76010.0,0.000833]
[1731003311917,0.00098512,76012.0,76010.0,0.000833]
[1731003312144,0.13322614,76012.0,76010.0,0.000833]
[1731003312342,0.0786,76013.0,76010.0,0.000833]
[1731003312775,0.00098512,76012.0,76010.0,0.000833]
[1731003313238,0.0786,76013.0,76010.0,0.000833]
[1731003313459,0.00098512,76012.0,76010.0,0.000833]
[1731003313913,0.38966296,76011.0,76010.0,0.000833]
[1731003314327,0.13224102,76011.0,76010.0,0.000833]
[1731003314536,0.13322614,76011.0,76010.0,0.000833]
[1731003316690,0.000746,76020.0,76010.0,0.000833]
[1731003317348,0.000746,76020.0,76012.0,0.1]
[1731003317574,0.000746,76020.0,76013.0,0.00263083]
[1731003319573,1.01014,76020.0,76013.0,0.00263083]
[1731003320404,1.01014,76020.0,76010.0,0.000833]
[1731003321166,0.00098512,76019.0,76010.0,0.000833]
[1731003321582,0.07688512,76019.0,76010.0,0.000833]
[1731003321788,0.38966296,76018.0,76010.0,0.000833]
[1731003321989,0.25742194,76011.0,76010.0,0.000833]
[1731003322123,0.38966296,76011.0,76010.0,0.000833]
[1731003322336,0.13224102,76011.0,76010.0,0.000833]
[1731003323411,0.00098512,76017.0,76010.0,0.000833]
[1731003323616,0.13224102,76017.0,76010.0,0.000833]
[1731003323826,0.0759,76019.0,76011.0,0.19777829]
[1731003324062,1.01014,76020.0,76010.0,0.000833]
[1731003324280,1.01014,76020.0,76013.0,0.1]
[1731003325165,1.01014,76020.0,76010.0,0.000833]
[1731003325373,1.01014,76020.0,76014.0,0.19777829]
[1731003325657,1.01014,76020.0,76010.0,0.000833]
[1731003326796,0.00098512,76019.0,76010.0,0.000833]
[1731003328044,0.00098512,76019.0,76012.0,0.1]
[1731003329092,0.00098512,76019.0,76010.0,0.000833]
[1731003329513,0.13224102,76018.0,76010.0,0.000833]
[1731003329631,0.00098512,76017.0,76010.0,0.000833]
[1731003329830,0.13224102,76017.0,76010.0,0.000833]
[1731003331109,0.00098512,76016.0,76010.0,0.000833]
[1731003332147,0.13224102,76017.0,76010.0,0.000833]
[1731003332358,0.00098512,76016.0,76010.0,0.000833]
[1731003334535,0.00098512,76016.0,76011.0,0.19777829]
[1731003334662,0.001666,76019.0,76012.0,0.1]
[1731003334870,0.001666,76019.0,76013.0,0.00263085]
[1731003336002,0.001666,76019.0,76014.0,0.1]
[1731003336208,0.001666,76019.0,76016.0,0.002]
[1731003336586,0.001666,76019.0,76017.0,0.18023074]
[1731003336814,0.001666,76019.0,76018.0,0.24924102]
[1731003337329,1.01014,76020.0,76019.0,0.117]
[1731003337547,1.01014,76020.0,76019.0,0.42480703]
[1731003338255,1.01014,76020.0,76019.0,0.1]
[1731003338486,1.01014,76020.0,76018.0,0.02694552]
[1731003338767,1.01014,76020.0,76015.0,0.005]
[1731003338987,1.01014,76020.0,76016.0,0.005]
[1731003339232,1.01014,76020.0,76013.0,0.02781055]
[1731003339668,1.01014,76020.0,76014.0,0.19777829]
[1731003340558,1.01014,76020.0,76010.0,0.02780606]
[1731003341287,1.01014,76020.0,76011.0,0.00263091]
[1731003341750,1.01014,76020.0,76015.0,0.1]
[1731003341982,1.00024,76020.0,76017.0,0.002]
[1731003342209,1.00024,76020.0,76015.0,0.1]
[1731003342860,1.001908,76020.0,76010.0,0.02780606]